bitfinex-derivatives/quotes_SOLF0:USTF0_20230103
["timestamp","ask_amount","ask_price","bid_price","bid_amount"]
[1672725797108,0.06414673,11.765,11.757,0.06946835]
[1672725797740,46.07,11.794,11.762,11.45]
[1672725798060,50.0,11.786,11.768,11.49]
[1672725798269,14.47,11.785,11.764,48.7371]
[1672725798480,3.0,11.785,11.763,3.0]
[1672725798794,0.06231609,11.778,11.77,0.06679769]
[1672725799007,0.06591801,11.778,11.77,0.06654622]
[1672725799633,11.49,11.775,11.77,0.06654622]
[1672725799845,11.49,11.775,11.77,0.00239949]
[1672725801316,11.45591801,11.778,11.77,0.00239949]
[1672725802259,0.06591801,11.778,11.77,0.00239949]
[1672725802889,0.06591801,11.778,11.77,61.41503812]
[1672725803096,50.0,11.796,11.776,11.42]
[1672725803310,3.0,11.795,11.777,3.0]
[1672725803940,11.55136535,11.79,11.782,0.06269798]
[1672725804152,3.0,11.789,11.782,0.06269798]
[1672725804366,11.49,11.784,11.782,0.06269798]
[1672725804573,3.0,11.783,11.779,0.06515058]
[1672725804778,11.49,11.784,11.777,0.06332483]
[1672725804991,0.06130605,11.785,11.776,0.07125895]
[1672725805207,0.06391856,11.785,11.776,0.06961427]
[1672725806992,0.00391856,11.785,11.777,11.49]
[1672725807198,0.00391856,11.785,11.784,3.0]
[1672725807414,11.49,11.801,11.784,3.0]
[1672725808045,0.06998778,11.797,11.788,0.06218896]
[1672725808253,0.06998778,11.797,11.788,0.06906515]
[1672725811512,0.06998778,11.797,11.79,11.4]
[1672725811824,0.06998778,11.797,11.791,3.0]
[1672725812035,11.49,11.808,11.791,3.0]
[1672725812872,11.39,11.811,11.793,11.45]
[1672725813083,0.06674281,11.804,11.794,3.0]
[1672725813293,11.49,11.818,11.803,11.4]
[1672725813504,50.0,11.816,11.799,11.49]
[1672725813715,3.0,11.82,11.804,3.0]
[1672725813925,50.0,11.816,11.804,3.0]
[1672725814133,11.38,11.814,11.796,3.0]
[1672725814342,3.0,11.825,11.8,49.92263863]
[1672725814553,3.0,11.825,11.808,3.0]
[1672725814768,0.0602276,11.821,11.81,11.45]
[1672725814978,0.0602276,11.821,11.813,11.42]
[1672725815192,3.0,11.834,11.819,11.45]
[1672725815402,3.0,11.834,11.813,3.0]
[1672725815403,50.0,11.836,11.822,11.4]
[1672725815717,50.0,11.836,11.819,11.45]
[1672725815922,11.49,11.837,11.809,49.5727]
[1672725816133,50.0,11.827,11.819,0.06264514]
[1672725816350,11.39,11.822,11.8,49.92263863]
[1672725816657,11.49,11.825,11.808,11.42]
[1672725816868,11.49,11.829,11.812,11.49]
[1672725817288,50.0,11.827,11.816,0.06282912]
[1672725817609,0.06736478,11.825,11.816,0.06282912]
[1672725818022,3.0,11.822,11.816,0.06282912]
[1672725818233,61.49,11.817,11.798,61.0627]
[1672725818444,3.0,11.816,11.799,3.0]
[1672725818654,11.49,11.813,11.799,3.0]
[1672725819078,0.0602096,11.81,11.802,0.07001308]
[1672725825175,11.5502096,11.81,11.802,0.07001308]
[1672725825701,3.0,11.806,11.802,0.07001308]
[1672725826226,11.49,11.804,11.802,0.07001308]
[1672725826436,3.0,11.803,11.788,575.0]
[1672725826647,11.49,11.801,11.788,575.0]
[1672725826858,11.49,11.798,11.788,575.0]
[1672725827172,3.0,11.8,11.788,575.0]
[1672725827380,11.39,11.797,11.79,0.0680124]
[1672725827592,11.39,11.797,11.789,0.06028329]
[1672725827801,3.0,11.796,11.789,0.06089752]
[1672725828013,11.49,11.794,11.789,0.06089752]
[1672725830010,11.49,11.791,11.789,0.06089752]
[1672725830214,3.0,11.79,11.786,0.06177169]
[1672725830425,11.49,11.788,11.772,877.0]
[1672725830744,0.06178489,11.784,11.776,0.07128814]
[1672725839675,0.06178489,11.784,11.777,11.45]
[1672725839985,0.06178489,11.784,11.778,3.0]
[1672725840195,11.49,11.795,11.784,0.02069099]
[1672725841248,0.06542119,11.794,11.785,0.06633355]
[1672725841459,3.06542119,11.794,11.785,0.06633355]
[1672725842089,0.06542119,11.794,11.785,0.06633355]
[1672725846189,11.49,11.792,11.785,0.06633355]
[1672725846502,3.0,11.791,11.785,0.06633355]
[1672725847655,50.0,11.788,11.785,3.355e-05]
[1672725847977,11.49,11.786,11.772,877.0]
[1672725848291,11.49,11.781,11.772,877.0]
[1672725848708,11.55962896,11.781,11.772,877.06522314]
[1672725849762,3.0,11.78,11.772,0.06522314]
[1672725850079,11.49,11.778,11.772,0.06522314]
[1672725850288,3.0,11.777,11.772,0.06522314]
[1672725850707,11.49,11.775,11.772,0.06522314]
[1672725851021,3.0,11.774,11.769,0.06834094]
[1672725851233,3.0,11.771,11.767,0.06153374]
[1672725851442,3.0,11.771,11.765,0.06555967]
[1672725851653,11.55490087,11.772,11.764,0.06944039]
[1672725852488,11.47,11.765,11.754,2393.48441074]
[1672725852705,11.47,11.765,11.747,2404.93441074]
[1672725852909,3.0,11.764,11.748,3.0]
[1672725853439,0.06266938,11.76,11.748,3.0]
[1672725853645,0.06266938,11.76,11.752,0.07085489]
[1672725855017,11.49,11.759,11.752,0.07085489]
[1672725855335,3.0,11.758,11.752,0.07085489]
[1672725855541,11.49,11.759,11.752,0.07085489]
[1672725855856,0.06266938,11.76,11.752,0.07085489]
[1672725864996,11.49,11.759,11.752,0.07085489]
[1672725865207,3.0,11.758,11.752,0.07085489]
[1672725866048,11.49,11.759,11.752,0.07085489]
[1672725866258,0.06266938,11.76,11.752,0.07085489]
[1672725866468,3.0,11.758,11.752,0.07085489]
[1672725867203,3.06266938,11.76,11.752,0.07085489]
[1672725868252,11.49,11.758,11.752,0.07085489]
[1672725868463,3.0,11.757,11.752,0.07085489]
[1672725869096,11.49,11.758,11.752,0.07085489]
[1672725870673,3.0,11.754,11.752,0.07085489]
[1672725870883,3.0,11.754,11.749,0.06469911]
[1672725871093,3.0,11.754,11.747,0.07005454]
[1672725871303,3.0,11.754,11.746,0.06843821]
[1672725871510,3.0,11.751,11.746,0.06683401]
[1672725872248,3.06283605,11.754,11.746,0.06683401]
[1672725872564,11.49,11.761,11.747,3.0]
[1672725872774,3.0,11.76,11.747,3.0]
[1672725873616,0.06182493,11.758,11.749,0.06244122]
[1672725874053,11.39,11.771,11.752,49.92263863]
[1672725874352,3.0,11.77,11.753,3.0]
[1672725874978,0.06419315,11.766,11.757,0.07021199]
[1672725875609,3.0,11.764,11.757,0.07021199]
[1672725876234,11.49,11.765,11.757,0.07021199]
[1672725876444,0.06419315,11.766,11.757,0.07021199]
[1672725878552,3.0,11.763,11.757,0.07021199]
[1672725880233,11.39,11.764,11.757,0.07021199]
[1672725882327,0.02134528,11.757,11.747,2376.0]
[1672725882963,0.02134528,11.757,11.75,11.39]
[1672725883278,0.02134528,11.757,11.751,3.0]
[1672725883700,0.02134528,11.757,11.75,11.39]
[1672725886643,0.02134528,11.757,11.754,11.49]
[1672725886856,0.02134528,11.757,11.755,3.0]
[1672725887692,0.02134528,11.757,11.754,11.49]
[1672725888007,3.0,11.774,11.757,3.0]
[1672725888325,3.0,11.774,11.76,11.49]
[1672725888641,3.0,11.774,11.757,14.49]
[1672725889060,0.06039716,11.77,11.761,0.06304377]
[1672725889271,0.06039716,11.77,11.761,0.06660679]
[1672725890427,11.47,11.763,11.742,575.0]
[1672725890634,3.0,11.762,11.744,3.0]
[1672725890841,3.0,11.762,11.744,64.5779]
[1672725891372,0.06963929,11.757,11.749,0.06223858]
[1672725891579,3.0,11.764,11.749,0.06993178]
[1672725891794,0.06619013,11.761,11.752,0.06076325]
[1672725892106,0.06627942,11.761,11.753,61.31263863]
[1672725892525,0.06627942,11.761,11.754,3.0]
[1672725894206,0.06627942,11.761,11.753,14.39]
[1672725894943,0.06627942,11.761,11.753,11.39]
[1672725897147,58.0172,11.773,11.754,3.0]
[1672725897569,11.39,11.777,11.76,11.45]
[1672725897773,467.66269546,11.843,11.76,11.45]
[1672725897774,58.0172,11.78,11.762,49.92263863]
[1672725897988,3.0,11.779,11.762,49.92263863]
[1672725898201,0.06601021,11.775,11.766,0.06712419]
[1672725898516,0.06601021,11.775,11.766,0.06742122]
[1672725900721,0.06601021,11.775,11.766,3.06742122]
[1672725901460,0.06601021,11.775,11.766,0.06742122]
[1672725904721,14.49,11.774,11.753,11.39]
[1672725904931,11.49,11.764,11.748,11.45]
[1672725905141,11.49,11.764,11.752,49.92263863]
[1672725905459,11.49,11.764,11.753,3.0]
[1672725905660,3.0,11.767,11.753,3.0]
[1672725905873,0.06100048,11.764,11.756,0.06205169]
[1672725909237,11.49,11.762,11.756,0.06205169]
[1672725909449,3.0,11.761,11.743,58.6623]
[1672725909667,3.0,11.761,11.744,3.0]
[1672725910079,11.47,11.765,11.75,11.42]
[1672725910289,3.0,11.764,11.752,49.92263863]
[1672725910504,0.06481995,11.762,11.753,3.06837467]
[1672725910925,0.06481995,11.762,11.753,0.06837467]
[1672725911136,11.55481995,11.762,11.753,0.06837467]
[1672725911345,11.39,11.759,11.743,47.1723]
[1672725911978,3.0,11.758,11.743,47.1723]
[1672725912398,0.06672765,11.755,11.746,0.06397737]
[1672725915548,14.49,11.768,11.752,49.92263863]
[1672725915757,11.49,11.768,11.753,3.0]
[1672725916596,0.0646526,11.765,11.753,3.0]
[1672725916813,0.0646526,11.765,11.756,0.0630184]
[1672725930052,3.0,11.77,11.765,0.11350559]
[1672725930265,11.49,11.766,11.745,48.358]
[1672725930584,11.39,11.762,11.746,3.0]
[1672725930898,3.0,11.761,11.75,0.06172981]
[1672725931105,0.06545227,11.758,11.75,0.06172981]
[1672725937099,0.06545227,11.758,11.752,49.92263863]
[1672725937302,0.06545227,11.758,11.753,1801.0]
[1672725937728,0.06545227,11.758,11.75,0.06172981]
[1672725938253,11.55545227,11.758,11.75,0.06172981]
[1672725938881,11.49,11.756,11.75,0.06172981]
[1672725939096,3.0,11.755,11.75,0.06172981]
[1672725939619,11.49,11.756,11.75,0.06172981]
[1672725942770,11.3356611,11.756,11.75,0.06172981]
[1672725943710,0.06545227,11.758,11.75,0.06172981]
[1672725945399,7.63,11.757,11.75,0.06172981]
[1672725946548,0.06545227,11.758,11.752,49.92263863]
[1672725947183,0.06545227,11.758,11.75,0.06172981]
[1672725947917,0.06545227,11.758,11.752,49.92263863]
[1672725948334,0.06545227,11.758,11.75,0.06172981]
[1672725948549,0.06545227,11.758,11.752,49.92263863]
[1672725949283,0.06545227,11.758,11.75,0.06172981]
[1672725949496,0.06545227,11.758,11.752,49.92263863]
[1672725950336,0.06545227,11.758,11.75,0.06172981]
[1672725950547,7.61,11.757,11.75,0.06172981]
[1672725950854,3.0,11.756,11.75,0.06172981]
[1672725951071,7.61,11.757,11.75,0.06172981]
[1672725952021,7.61,11.757,11.752,49.92263863]
[1672725952228,0.06545227,11.758,11.75,0.06172981]
[1672725952858,0.06545227,11.758,11.752,49.92263863]
[1672725953593,0.06545227,11.758,11.751,1798.0]
[1672725953804,0.06545227,11.758,11.752,49.92263863]
[1672725954332,0.06545227,11.758,11.753,3.0]
[1672725954541,0.06545227,11.758,11.753,10.61]
[1672725954750,7.63,11.764,11.754,3.0]
[1672725955695,0.06443962,11.763,11.755,0.06422489]
[1672725961684,3.0,11.772,11.752,49.92263863]
[1672725961685,7.56,11.774,11.762,7.56]
[1672725961895,7.56,11.774,11.763,3.0]
[1672725962309,7.61,11.772,11.76,7.63]
[1672725962524,0.06071916,11.77,11.76,7.63]
[1672725962729,0.06071916,11.77,11.762,49.88986678]
[1672725963362,0.06071916,11.77,11.76,7.63]
[1672725963573,0.06071916,11.77,11.762,49.88986678]
[1672725963787,0.06616585,11.77,11.762,49.95882412]
[1672725964413,0.06616585,11.77,11.763,3.0]
[1672725965464,0.06616585,11.77,11.762,49.95882412]
[1672725965885,0.06616585,11.77,11.762,0.06895734]
[1672725966095,0.06616585,11.77,11.762,49.95882412]
[1672725966725,0.06616585,11.77,11.762,0.06895734]
[1672725967886,0.06616585,11.77,11.762,49.95882412]
[1672725968512,0.06616585,11.77,11.762,0.06895734]
[1672725969043,0.06616585,11.77,11.762,49.95882412]
[1672725970198,0.06616585,11.77,11.762,0.06895734]
[1672725970832,0.06616585,11.77,11.762,49.95882412]
[1672725971460,0.06616585,11.77,11.762,0.06895734]
[1672725971672,7.69616585,11.77,11.762,0.06895734]
[1672725971885,0.06616585,11.77,11.762,49.95882412]
[1672725972092,115.67761573,11.839,11.762,49.95882412]
[1672725972093,7.63,11.804,11.777,1798.0]
[1672725972303,53.6393,11.803,11.781,49.88986678]
[1672725972514,53.6393,11.803,11.782,3.0]
[1672725972723,3.0,11.802,11.782,3.0]
[1672725972935,7.56,11.789,11.788,0.06048009]
[1672725973248,7.56,11.789,11.784,0.06089509]
[1672725973565,7.56,11.789,11.782,0.06491238]
[1672725974404,7.63,11.783,11.782,0.06491238]
[1672725974617,7.63,11.783,11.778,0.06979593]
[1672725974819,0.06788595,11.787,11.776,0.06432135]
[1672725975034,7.63,11.777,11.773,3.0]
[1672725975350,0.06476867,11.779,11.771,0.07128413]
[1672725975559,7.6926597,11.78,11.771,0.07108166]
[1672725975770,7.69556009,11.78,11.772,877.06178707]
[1672725976191,0.06556009,11.78,11.772,877.06178707]
[1672725977029,7.63,11.787,11.774,7.63]
[1672725977243,7.63,11.787,11.775,1801.0]
[1672725977452,7.63,11.787,11.776,3.0]
[1672725977663,7.56,11.785,11.776,3.0]
[1672725978186,7.62773722,11.785,11.776,3.06839513]
[1672725980400,7.62773722,11.785,11.776,0.06839513]
[1672725980611,0.06773722,11.785,11.781,49.88986678]
[1672725980925,3.0,11.786,11.777,1798.0]
[1672725981241,3.0,11.786,11.772,877.0]
[1672725981554,3.0,11.793,11.772,877.0]
[1672725981764,7.63,11.782,11.778,0.06975373]
[1672725981975,0.06694981,11.784,11.776,0.06732188]
[1672725982188,0.0613154,11.784,11.781,49.88986678]
[1672725982397,7.63,11.785,11.781,49.88986678]
[1672725982814,7.63,11.782,11.778,1798.06697201]
[1672725983023,3.0,11.793,11.778,0.06697201]
[1672725983024,7.63,11.779,11.778,0.06697201]
[1672725983229,7.63,11.779,11.772,877.0]
[1672725986285,0.06452206,11.78,11.772,877.0]
[1672725993223,0.06452206,11.78,11.771,7.69941071]
[1672725993427,0.06452206,11.78,11.779,49.88986678]
[1672725993642,7.56,11.784,11.779,49.88986678]
[1672725993643,7.62832679,11.784,11.779,49.88986678]
[1672725993854,7.62832679,11.784,11.781,49.88986678]
[1672725994065,7.56,11.784,11.781,49.88986678]
[1672725994800,7.56,11.784,11.778,0.06152443]
[1672725995422,7.63,11.78,11.778,0.06152443]
[1672725995740,7.63,11.78,11.775,0.06049077]
[1672725995955,7.63,11.78,11.773,0.06847562]
[1672725996584,7.47040643,11.78,11.773,0.06847562]
[1672725997007,30.49,11.804,11.779,57.49986678]
[1672725997218,7.63,11.793,11.782,7.63]
[1672725997428,7.63,11.798,11.79,49.88986678]
[1672725997633,7.63,11.798,11.786,7.63]
[1672725998060,0.06259762,11.796,11.79,49.88986678]
[1672725999006,0.06259762,11.796,11.789,1798.0]
[1672725999216,0.06259762,11.796,11.79,49.88986678]
[1672726000575,0.06259762,11.796,11.788,0.07108733]
[1672726000790,7.63,11.793,11.79,49.88986678]
[1672726001102,7.67259762,11.796,11.79,49.88986678]
[1672726001316,7.67259762,11.796,11.789,1798.0]
[1672726001526,0.06259762,11.796,11.789,1798.0]
[1672726001732,7.63,11.801,11.79,52.88986678]
[1672726002151,7.63,11.801,11.79,3.0]
[1672726002682,46.4129,11.803,11.79,3.0]
[1672726002683,7.63,11.798,11.791,0.06659397]
[1672726003104,7.61,11.796,11.791,0.06659397]
[1672726004147,7.69502769,11.798,11.791,0.06659397]
[1672726006570,0.06502769,11.798,11.791,0.06659397]
[1672726006782,0.06502769,11.798,11.792,7.56]
[1672726006992,0.06502769,11.798,11.793,3.0]
[1672726007198,7.63,11.806,11.794,1805.63]
[1672726007406,7.63,11.806,11.799,49.88986678]
[1672726008464,7.63,11.806,11.798,0.06758081]
[1672726008666,7.63,11.803,11.798,0.06758081]
[1672726010670,7.63,11.8,11.798,0.06758081]
[1672726010882,7.63,11.8,11.794,1798.0]
[1672726010883,7.63,11.8,11.795,0.06340608]
[1672726011720,7.56,11.799,11.795,0.06340608]
[1672726012035,7.63,11.796,11.787,575.0]
[1672726012244,7.57,11.793,11.782,877.0]
[1672726012454,7.57,11.793,11.783,3.0]
[1672726012664,7.57,11.793,11.783,2.84873116]
[1672726012981,0.07106658,11.792,11.784,0.06513611]
[1672726013191,0.07106658,11.792,11.789,49.88986678]
[1672726013401,7.63,11.794,11.79,3.0]
[1672726015395,0.06771009,11.796,11.79,3.0]
[1672726016763,0.06771009,11.796,11.789,49.96112639]
[1672726017181,7.56,11.794,11.789,49.96112639]
[1672726017604,7.56,11.794,11.789,0.07125961]
[1672726018025,7.56,11.794,11.789,49.96112639]
[1672726018444,7.67771009,11.796,11.79,3.0]
[1672726019594,7.67771009,11.796,11.789,0.07125961]
[1672726019812,7.63,11.794,11.789,0.07125961]
[1672726021806,0.06771009,11.796,11.789,0.07125961]
[1672726023066,0.06771009,11.796,11.789,3.07125961]
[1672726024331,7.63771009,11.796,11.789,3.07125961]
[1672726024543,7.63771009,11.796,11.789,0.07125961]
[1672726028004,7.43972124,11.796,11.789,3.07125961]
[1672726028951,7.61,11.79,11.773,3.0]
[1672726029163,7.61,11.783,11.778,49.88986678]
[1672726029368,7.61,11.783,11.773,3.0]
[1672726029784,7.61,11.783,11.779,3.0]
[1672726030736,7.61,11.783,11.778,49.88986678]
[1672726031047,7.63,11.78,11.777,0.07037301]
[1672726031263,7.63,11.78,11.774,0.06859087]
[1672726031472,7.63,11.78,11.777,49.88986678]
[1672726031683,7.63,11.78,11.778,3.0]
[1672726031996,7.63,11.78,11.777,49.88986678]
[1672726032206,7.63,11.78,11.774,0.06859087]
[1672726032417,7.61,11.778,11.774,0.06859087]
[1672726033051,7.61,11.778,11.777,49.75299943]
[1672726033261,7.61,11.778,11.774,0.06859087]
[1672726033465,7.61,11.778,11.777,49.75299943]
[1672726034518,7.61,11.778,11.774,0.06859087]
[1672726035361,7.61,11.778,11.777,49.75299943]
[1672726035781,7.61,11.778,11.774,0.06859087]
[1672726037360,7.63,11.775,11.774,0.06859087]
[1672726037675,7.63,11.775,11.77,0.06008121]
[1672726037883,7.63,11.775,11.768,0.06402191]
[1672726038101,7.63,11.775,11.774,49.75299943]
[1672726038931,7.63,11.775,11.77,0.07038825]
[1672726039146,7.63,11.775,11.774,49.75299943]
[1672726039672,7.63,11.775,11.774,18.97599943]
[1672726040094,7.63,11.775,11.77,0.07038825]
[1672726041042,7.63,11.775,11.774,18.97599943]
[1672726041252,7.63,11.775,11.77,0.07038825]
[1672726041463,7.63,11.775,11.774,18.97599943]
[1672726041669,3.0,11.774,11.77,0.07038825]
[1672726041880,3.0,11.774,11.77,8.825e-05]
[1672726042196,7.63,11.771,11.77,8.825e-05]
[1672726042400,7.63,11.771,11.762,3.0]
[1672726042931,7.69101045,11.771,11.762,3.06086955]
[1672726044083,0.06101045,11.771,11.762,3.06086955]
[1672726044821,7.61,11.776,11.766,3.0]
[1672726045874,0.0709003,11.775,11.767,0.06275376]
[1672726047346,7.61,11.774,11.767,0.06275376]
[1672726050282,7.63,11.769,11.767,0.06275376]
[1672726050496,7.63,11.769,11.764,0.06606906]
[1672726050812,7.63,11.769,11.762,3.06766514]
[1672726055962,7.63,11.769,11.762,0.06766514]
[1672726056487,0.06750486,11.771,11.762,3.06766514]
[1672726057224,7.63,11.772,11.771,0.03280888]
[1672726060057,10.63,11.772,11.767,0.06829478]
[1672726060270,7.63,11.768,11.767,0.06829478]
[1672726060479,7.63,11.768,11.763,0.06420649]
[1672726060690,7.63,11.768,11.761,0.06189542]
[1672726062052,46.5191,11.775,11.761,0.06189542]
[1672726062271,46.5191,11.775,11.762,7.59]
[1672726062478,46.5191,11.775,11.764,7.63]
[1672726062688,46.5191,11.775,11.765,3.0]
[1672726063206,0.06893283,11.774,11.766,0.07026246]
[1672726065000,7.63,11.773,11.766,0.07026246]
[1672726067626,0.06893283,11.774,11.766,0.07026246]
[1672726067838,1581.97986337,11.868,11.766,0.07026246]
[1672726067839,7.63,11.781,11.769,7.59]
[1672726068258,3.0,11.78,11.77,3.0]
[1672726068783,7.63,11.781,11.77,3.0]
[1672726068996,0.0614639,11.78,11.771,0.06044542]
[1672726070043,0.0614639,11.78,11.772,7.57]
[1672726070254,0.0014639,11.78,11.775,7.63]
[1672726070569,0.0014639,11.78,11.777,7.61]
[1672726070779,7.63,11.789,11.778,3.0]
[1672726071089,0.07038555,11.788,11.778,3.0]
[1672726071305,0.07038555,11.788,11.779,0.06248354]
[1672726073193,7.61,11.786,11.779,0.06248354]
[1672726073511,3.0,11.783,11.779,0.06248354]
[1672726073925,7.61,11.784,11.779,0.06248354]
[1672726076033,0.17231036,11.779,11.773,3.0]
[1672726076243,0.17231036,11.779,11.772,7.56]
[1672726076452,0.17231036,11.779,11.771,49.777]
[1672726077181,0.23718563,11.779,11.772,3.0]
[1672726077389,0.23718563,11.779,11.772,10.63]
[1672726077603,0.23718563,11.779,11.773,3.0]
[1672726081081,0.23718563,11.779,11.772,10.63]
[1672726082026,0.23718563,11.779,11.773,3.0]
[1672726084958,0.23718563,11.779,11.772,10.63]
[1672726084959,7.63,11.795,11.784,1798.0]
[1672726085168,7.63,11.795,11.785,3.0]
[1672726085383,7.63,11.795,11.787,3.0]
[1672726085595,7.63,11.795,11.788,1798.0]
[1672726085804,7.63,11.795,11.787,3.0]
[1672726085805,7.63,11.795,11.787,0.06637406]
[1672726086013,7.63,11.795,11.789,3.0]
[1672726086540,7.63,11.795,11.791,3.0]
[1672726086753,7.63,11.795,11.787,0.06637406]
[1672726087589,7.63,11.792,11.787,0.06637406]
[1672726087800,7.63,11.789,11.787,0.06637406]
[1672726088011,7.63,11.789,11.784,0.06150645]
[1672726088223,7.63,11.789,11.782,0.07124866]
[1672726088431,7.63,11.789,11.781,0.06267842]
[1672726088642,7.6988977,11.789,11.781,0.06267842]
[1672726091268,7.63,11.786,11.781,0.06267842]
[1672726091479,7.61,11.785,11.781,0.06267842]
[1672726095994,7.63,11.783,11.781,0.06267842]
[1672726096209,3.0,11.782,11.769,7.63]
[1672726096421,7.63,11.781,11.77,3.0]
[1672726096946,3.0,11.78,11.769,7.63]
[1672726097153,7.61,11.774,11.77,0.06481966]
[1672726097469,7.57,11.771,11.77,0.06481966]
[1672726097680,7.57,11.771,11.766,0.06096806]
[1672726097894,7.57,11.771,11.764,3.06578952]
[1672726098312,7.57,11.771,11.764,0.06578952]
[1672726098518,7.63,11.768,11.764,0.06578952]
[1672726099680,0.07126578,11.77,11.764,0.06578952]
[1672726105459,0.00126578,11.77,11.764,0.06578952]
[1672726116182,7.61126578,11.77,11.764,0.06578952]
[1672726119118,7.54242448,11.77,11.764,0.06578952]
[1672726123324,7.63,11.766,11.764,8.952e-05]
[1672726123534,7.63,11.766,11.759,2393.48441074]
[1672726124477,7.61,11.763,11.759,2393.48441074]
[1672726126687,7.63,11.764,11.759,2393.48441074]
[1672726128578,7.56,11.761,11.759,2393.48441074]
[1672726128791,7.56,11.761,11.757,0.07097916]
[1672726129104,7.56,11.759,11.757,0.07097916]
[1672726129318,7.56,11.759,11.754,2393.54866565]
[1672726130155,0.06157868,11.762,11.754,2393.54866565]
[1672726130156,7.63,11.756,11.754,2393.54866565]
[1672726130366,7.63,11.755,11.754,2393.48441074]
[1672726130679,7.63,11.755,11.75,0.0690969]
[1672726130890,7.63,11.751,11.748,0.06708595]
[1672726131101,7.63,11.751,11.747,3.0]
[1672726132151,7.63,11.751,11.746,2393.48441074]
[1672726136141,7.46897228,11.751,11.747,3.0]
[1672726136354,7.59,11.75,11.746,2393.48441074]
[1672726136879,7.61,11.749,11.746,2393.48441074]
[1672726142451,7.57,11.747,11.746,2393.48441074]
[1672726142661,57.57,11.747,11.746,2393.48441074]
[1672726143926,7.57,11.747,11.746,2393.48441074]
[1672726144132,0.06890072,11.752,11.746,2393.48441074]
[1672726144343,0.06890072,11.752,11.748,1798.0]
[1672726144556,0.06890072,11.752,11.749,3.0]
[1672726144764,50.06403937,11.755,11.749,3.0]
[1672726145921,50.06403937,11.755,11.748,0.06753799]
[1672726145922,7.64,11.754,11.748,0.06753799]
[1672726146764,7.59,11.751,11.748,0.06753799]
[1672726146971,7.62,11.749,11.746,2393.48441074]
[1672726147813,0.06943269,11.752,11.746,2393.48441074]
[1672726148442,0.06943269,11.752,11.747,3.0]
[1672726151067,0.06943269,11.752,11.746,2393.48441074]
[1672726151805,0.06943269,11.752,11.745,0.06208563]
[1672726153591,7.65943269,11.752,11.745,0.06208563]
[1672726153803,7.62,11.747,11.745,0.06208563]
[1672726154118,7.62,11.747,11.742,0.06347796]
[1672726154431,0.06357901,11.749,11.741,7.61]
[1672726154642,0.06685334,11.749,11.744,3.0]
[1672726155377,50.0,11.755,11.746,7.64]
[1672726155588,50.0,11.755,11.747,3.0]
[1672726156429,50.06790794,11.755,11.747,3.06005309]
[1672726158214,3.0,11.75,11.747,0.06005309]
[1672726158425,3.0,11.75,11.744,0.06546472]
[1672726158844,7.64,11.749,11.744,0.06546472]
[1672726160212,50.0,11.745,11.744,0.06546472]
[1672726160415,50.0,11.745,11.74,0.06849868]
[1672726160737,50.0,11.744,11.738,0.07107499]
[1672726163050,57.59,11.744,11.738,0.07107499]
[1672726163465,10.64,11.743,11.738,0.00107499]
[1672726163681,7.59,11.74,11.738,0.00107499]
[1672726163889,3.0,11.739,11.726,7.61]
[1672726164096,7.59,11.737,11.726,7.61]
[1672726164305,3.0,11.739,11.724,48.4236]
[1672726164306,7.59,11.735,11.728,2393.48441074]
[1672726164516,7.62,11.732,11.728,2393.48441074]
[1672726165469,7.62,11.735,11.728,2393.48441074]
[1672726165673,50.0,11.734,11.728,2393.48441074]
[1672726166204,57.61,11.734,11.728,2393.48441074]
[1672726166940,50.0,11.734,11.728,2393.48441074]
[1672726167571,7.57,11.733,11.728,2393.48441074]
[1672726169772,50.0,11.734,11.728,2393.48441074]